Cogmind - Beta 15 @@@ ROGUE MODE // 2025.09.24 @ 18:01:10 Player: Anting Result: Destroyed by 8R-1H4(R) with Subdweller Laser Performance ------------- Evolutions (0) 0 Regions Visited (3) 600 Robots Destroyed (20) 100 Value Destroyed (475) 475 Prototype IDs (11) 220 Alien Tech Used (0) 0 Bonus (0) 0 TOTAL SCORE: 1395 Bonus ------- None Cogmind --------- Core Integrity 0/250 Matter 212/300 Energy 200/200 System Corruption 0% Temperature Cool (6) Movement Walking (330) Ox3 Location -10/Subcaves Parts ------- > --- POWER (1) -------- Subdweller Power Source > --- PROPULSION (2) --- Aluminum Leg > --- UTILITY (2) ------ Scrap Shield > --- WEAPON (2) ------- Subdweller Machine Gun Heavy Battle Rifle > --- INVENTORY (5) ---- Subdweller Power Source Arachnoskeleton Grenade Launcher Peak State ------------ > --- POWER ------------ Ion Engine > --- PROPULSION ------- Aluminum Leg Aluminum Leg > --- UTILITY ---------- High-capacity Storage Unit Seismic Detector > --- WEAPON ----------- Heavy Battle Rifle Makeshift Spear > --- INVENTORY -------- Subdweller Power Source Subdweller Power Source Subdweller Power Source Subdweller Power Source Spiked Treads Arachnoskeleton Subdweller Monowheel Subdweller Optics Improved Terrain Scanner Makeshift Light Armor Plating Scrap Shield EM Pulse Gun EM Pulse Gun Subdweller Beam Cannon Battle Rifle Subdweller Machine Gun Grenade Launcher [Rating: 18] Favorites ----------- Power Ion Engine Engine Ion Engine Propulsion Aluminum Leg Treads Light Treads Leg Aluminum Leg Utility Seismic Detector Device Seismic Detector Storage High-capacity Storage Unit Protection Scrap Shield Weapon Assault Rifle Energy Gun Subdweller Laser Energy Cannon Subdweller Beam Cannon Ballistic Gun Assault Rifle Piercing Weapon Makeshift Spear Build | -11 -10 -10 -10 ------- Run | Yrd Mat Min Sub Slots Evolved . | . . . . Power . | . . . . Propulsion . | . . . . Utility . | . . . . Weapon . | . . . . Parts Attached 20 | 7 . 1 12 Power 2 | 1 . . 1 Engine 2 | 1 . . 1 Core . | . . . . Reactor . | . . . . Propulsion 4 | 2 . . 2 Treads 2 | 2 . . . Leg 2 | . . . 2 Wheel . | . . . . Hover . | . . . . Flight . | . . . . Utility 5 | 2 . 1 2 Device 1 | 1 . . . Storage 2 | 1 . 1 . Processor . | . . . . Hackware . | . . . . Protection 2 | . . . 2 Artifact . | . . . . Weapon 9 | 2 . . 7 Energy Gun 1 | . . . 1 Energy Cannon 1 | . . . 1 Ballistic Gun 6 | 2 . . 4 Ballistic Cannon . | . . . . Launcher . | . . . . Special Weapon . | . . . . Impact Weapon . | . . . . Slashing Weapon . | . . . . Piercing Weapon 1 | . . . 1 Special Melee Weapon . | . . . . Unidentified Prototypes . | . . . . Parts Lost 7 | . . . 7 Power 1 | . . . 1 Propulsion 3 | . . . 3 Utility . | . . . . Weapon 3 | . . . 3 Highest Loss Streak 4 | . . . 4 To Critical Strikes 1 | . . . 1 Average Backups 14 | 3 7 8 16 Power 2 | . 1 1 3 Propulsion 2 | 1 2 2 2 Utility 3 | . 1 1 4 Weapon 5 | 1 3 4 5 Tool/Special . | . . . . Unused Backups 18 | . . . 18 Power 5 | . . . 5 Propulsion 3 | . . . 3 Utility 6 | . . . 6 Weapon 4 | . . . 4 Tool/Special . | . . . . Average Slot Usage (%) 99 | . 100 100 98 Engine 13 | . 14 14 13 Treads 9 | . 28 28 4 Leg 18 | . . . 23 Device 13 | . 14 14 13 Storage 13 | . 14 14 13 Energy Cannon 1 | . . . 1 Ballistic Gun 20 | . 28 28 18 Piercing Weapon 6 | . . . 7 Peak Build Rating 18 | 7 8 8 18 Average Rating 12 | 5 7 8 14 On Entrance 5 | . 7 8 8 Naked Turns . | . . . . Heaviest Build 58 | 15 15 50 58 Greatest Support 40 | 40 40 40 40 Greatest Overweight (x) 2 | 2 . 1 2 Average Overweight (x) 1 | . . . 1 Largest Inventory Capacity 20 | 8 8 20 20 Average Capacity 18 | 7 8 16 19 Most Carried 20 | 5 8 9 20 Average Carried 16 | 3 7 8 18 Final Capacity 20 | 8 8 20 5 Final Carried 9 | 5 8 9 5 Class Distribution -------------------- 100% | Mutant Dominant Class ---------------- Mutant | -10/Materials Mutant | -10/Mines Mutant | -10/Subcaves Resources | -11 -10 -10 -10 ----------- Run | Yrd Mat Min Sub Matter Collected 680 | 330 . 19 331 Remotely . | . . . . Salvage Created 666 | 190 19 39 418 Parts 51 | 13 1 9 28 Haulers Intercepted . | . . . . Recyclers Shooed . | . . . . Parts Field Recycled . | . . . . Retrieved Matter . | . . . . Parts Self-Destructed . | . . . . Prevented . | . . . . Kills | -11 -10 -10 -10 ------- Run | Yrd Mat Min Sub Combat Hostiles Destroyed 13 | . . 3 10 Guns 12 | . . 3 9 Cannons 1 | . . . 1 Classes Destroyed 6 | 3 1 1 1 Worker 2 | 2 . . . Tunneler 3 | 3 . . . Recycler 1 | 1 . . . Watcher 1 | . 1 . . Swarmer 3 | . . 3 . Subdweller 10 | . . . 10 Best Kill Streak 4 | 4 1 3 3 Combat Bots Only 3 | . . 3 3 Max Kills in Single Turn 1 | 1 1 1 1 Gunslinging . | . . . . Exploded . | . . . . Melee . | . . . . Uniques/NPCs Destroyed . | . . . . Combat | -11 -10 -10 -10 -------- Run | Yrd Mat Min Sub Hostile Shots Fired 96 | . . 7 89 Missed 28 | . . 1 27 Hits 68 | . . 6 62 Projectile 68 | . . 6 62 Critical Strikes 4 | . . . 4 Damage Taken 1389 | . 22 53 1314 Core 256 | . . . 256 Absorbed by Shields . | . . . . Core Remaining (%) 100 | 100 . . . Volleys Fired 69 | 10 3 4 52 Largest 2 | 2 2 2 2 Hottest 113 | 40 40 40 113 Shots Fired 133 | 20 6 8 99 Gun 127 | 20 6 8 93 Cannon 6 | . . . 6 Launcher . | . . . . Special . | . . . . Kinetic 119 | 20 6 8 85 Thermal 14 | . . . 14 Explosive . | . . . . Electromagnetic . | . . . . Robot Hit Streak 33 | 9 10 2 33 Robot Miss Streak 3 | 1 1 3 2 Penetration Max . | . . . . Secondary Targets 2 | . . 1 1 Max Gunslinging Chain 1 | . . 1 1 Shots Hit Robots 103 | 17 5 3 78 Core Hits 34 | 7 2 3 22 Critical Kills . | . . . . Critical Parts Destroyed . | . . . . Critical Strikes 1 | . . . 1 Destroy 1 | . . . 1 Melee Attacks 26 | . . . 26 Impact . | . . . . Slashing . | . . . . Piercing 26 | . . . 26 Sneak Attacks . | . . . . Combat Hostiles . | . . . . Follow-up Attacks . | . . . . Damage Inflicted 1552 | 183 77 39 1253 Guns 1453 | 183 62 39 1169 Cannons 84 | . . . 84 Explosions . | . . . . Melee . | . . . . Ramming 15 | . 15 . . Kinetic 1293 | 183 62 39 1009 Thermal 244 | . . . 244 Explosive . | . . . . Electromagnetic . | . . . . Impact . | . . . . Slashing . | . . . . Piercing . | . . . . Highest Corruption . | . . . . Average Corruption . | . . . . Corruption Purged . | . . . . Corruption Blocked . | . . . . Overload Shots . | . . . . Overflow Damage . | . . . . Projectiles . | . . . . Explosions . | . . . . Melee . | . . . . Knockbacks . | . . . . Impact . | . . . . Kinetic . | . . . . Secondary . | . . . . Self-Inflicted Damage . | . . . . Shots . | . . . . Rammed 4 | . 3 1 . Targets Rammed 4 | . 3 1 . Kicked . | . . . . Crushed . | . . . . Highest Temperature 1 | . . . 1 Average Temperature 1 | . . . 1 Received Heat Transfer 111 | . . . 111 Siege Activations . | . . . . Martial Activations . | . . . . Shielding Activations . | . . . . Robots Disrupted . | . . . . Combat Hostiles . | . . . . Robots Corrupted . | . . . . Combat Hostiles . | . . . . Parts Fried . | . . . . Impact Corruptions . | . . . . Robots Melted . | . . . . Combat Hostiles . | . . . . Parts Melted . | . . . . Heat Transferred 311 | . . . 311 Parts Sabotaged . | . . . . Parts Stolen . | . . . . Parts Stripped . | . . . . Power Chain Reactions . | . . . . Alert | -11 -10 -10 -10 ------- Run | Yrd Mat Min Sub Maximum Alert Level . | . . . . Low Security (%) 100 | 100 100 100 . Level 1 . | . . . . Level 2 . | . . . . Level 3 . | . . . . Level 4 . | . . . . Level 5 . | . . . . High Security . | . . . . Max Security . | . . . . Peak Influence 62 | 15 . 62 . Initial . | . . . . Average 6 | 2 . 8 . Influence Increases 107 | 30 7 70 . Destroy 0b10 Robot/C 60 | . . 60 . Destroy 0b10 Robot/NC 35 | 30 5 . . Destroy Leader 12 | . 2 10 . Influence Decreases 107 | 30 7 70 . Time Decay 107 | 30 7 70 . Squads Dispatched 1 | . 1 . . Investigation 1 | . 1 . . Extermination . | . . . . Reinforcement . | . . . . Assault . | . . . . Garrison . | . . . . Intercept . | . . . . Searches Triggered . | . . . . Construction Impeded . | . . . . Haulers Reinforced . | . . . . Active Scanning Responses . | . . . . Cargo Convoy Interrupts . | . . . . Stealth | -11 -10 -10 -10 --------- Run | Yrd Mat Min Sub Distress Signals . | . . . . Communications Jammed . | . . . . Distress Signals . | . . . . Times Spotted 16 | . 1 3 12 Peak Tracking Total 2 | . 1 1 2 Tactical Retreats . | . . . . Traps | -11 -10 -10 -10 ------- Run | Yrd Mat Min Sub Traps Triggered 1 | . 1 . . Indirectly . | . . . . Trap Hack Attempts . | . . . . Triggered . | . . . . Disarmed . | . . . . Reprogrammed . | . . . . Reused . | . . . . Traps Extracted . | . . . . Installed . | . . . . Triggered . | . . . . Machines | -11 -10 -10 -10 ---------- Run | Yrd Mat Min Sub Machines Disabled 1 | . . . 1 Max in Single Turn 1 | . . . 1 Machines Repaired . | . . . . Machines Dismantled . | . . . . Machines Sabotaged . | . . . . Overloaded Fab Kills . | . . . . Hacking | -11 -10 -10 -10 --------- Run | Yrd Mat Min Sub Machines Accessed 3 | . 1 . 2 Terminals 1 | . 1 . . Fabricators . | . . . . Repair Stations . | . . . . Recycling Units . | . . . . Scanalyzers . | . . . . Garrison Access . | . . . . Total Hacks 7 | . 2 . 5 Successful 6 | . 1 . 5 Failed 1 | . 1 . . Catastrophic . | . . . . Database Lockouts . | . . . . Manual 2 | . 2 . . Terminals 2 | . 2 . . Fabricators . | . . . . Repair Stations . | . . . . Recycling Units . | . . . . Scanalyzers . | . . . . Garrison Access . | . . . . Terminal Hacks 6 | . 1 . 5 Record 4 | . . . 4 Part Schematic 1 | . 1 . . Proto ID Catalog 1 | . . . 1 Fabricator Hacks . | . . . . Repair Station Hacks . | . . . . Recycling Unit Hacks . | . . . . Scanalyzer . | . . . . Garrison Access Hacks . | . . . . Unauthorized Hacks . | . . . . Terminals . | . . . . Fabricators . | . . . . Repair Stations . | . . . . Recycling Units . | . . . . Scanalyzers . | . . . . Garrison Access . | . . . . Data Cores Recovered . | . . . . Used . | . . . . Hacking Detections 1 | . 1 . . Full Trace Events . | . . . . Feedback Events . | . . . . Feedback Blocked . | . . . . Robot Schematics Acquired . | . . . . Robots Built . | . . . . Authchips . | . . . . Time . | . . . . Total Robot Build Rating . | . . . . Part Schematics Acquired 1 | . 1 . . Parts Built . | . . . . Authchips . | . . . . Time . | . . . . Total Part Build Rating . | . . . . Parts Repaired . | . . . . Time . | . . . . Parts Recycled . | . . . . Recycled Matter . | . . . . Retrieved Matter . | . . . . Retrieved Components . | . . . . Parts Scanalyzed . | . . . . Part Schematics Acquired . | . . . . Parts Damaged . | . . . . Bothacking | -11 -10 -10 -10 ------------ Run | Yrd Mat Min Sub Used RIF Installer . | . . . . Robots Hacked . | . . . . Non-combat . | . . . . Combat . | . . . . Robot Hacks Applied . | . . . . Relay Couplers Released . | . . . . Fabnet Peak Effective % . | . . . . Robots Rewired . | . . . . Allies Hacked . | . . . . Hacks Repelled . | . . . . Allies | -11 -10 -10 -10 -------- Run | Yrd Mat Min Sub Total Allies . | . . . . Largest Group . | . . . . Highest-Rated Group . | . . . . Highest-Rated Ally . | . . . . Total Orders . | . . . . Ally Attacks . | . . . . Total Damage . | . . . . Kills . | . . . . Allies Corrupted . | . . . . Allies Melted . | . . . . Intel | -11 -10 -10 -10 ------- Run | Yrd Mat Min Sub Active Infowar (turns) 3725 | 78 148 618 2881 Seismic 3725 | 78 148 618 2881 Robot Analysis Total . | . . . . Derelict Logs Recovered 3 | . . 2 1 Drone Launches . | . . . . Drone Recoveries . | . . . . Exploration | -11 -10 -10 -10 ------------- Run | Yrd Mat Min Sub Turns Passed 3932 | 148 148 618 3018 Spaces Moved 1432 | 69 83 225 1055 Core 9 | 9 . . . Treads 524 | 60 83 225 156 Legs 899 | . . . 899 Wheels . | . . . . Hover . | . . . . Flight . | . . . . Fastest Speed 50 | 50 160 160 120 Average Speed 236 | 150 160 195 256 Slowest Speed 260 | 160 160 240 260 Overloaded Moves . | . . . . Propulsion Burnouts . | . . . . Robots Hopped . | . . . . Potential Cave-ins . | . . . . Cave-ins Triggered . | . . . . Exploration Rate (%) 38 | 7 25 60 61 Regions Visited 3 Branch Regions 2 Pre-discovered Areas 1 | . . 1 . Known Exits Taken . | . . . . Unknown Exits Taken 3 | 1 1 1 . Scrap Searched 7 | . . 1 6 Spaces Dug 6 | . . . 6 Terrain Destroyed 7 | . . . 7 Melee 6 | . . . 6 Projectile 1 | . . . 1 AOE . | . . . . Terrain Rammed . | . . . . Walls Destroyed . | . . . . Machines Disabled . | . . . . Actions | -11 -10 -10 -10 --------- Run | Yrd Mat Min Sub Total 1821 | 91 91 396 1243 Wait 204 | . . 164 40 Move 1429 | 68 82 224 1055 Hop . | . . . . Pick Up 44 | 6 3 1 34 Fast Attach 12 | 6 . . 6 Attach 7 | 1 . . 6 Detach . | . . . . Swap 7 | . . 1 6 Drop 19 | . . 1 18 Fire 69 | 10 3 4 52 Melee 26 | . . . 26 Ram . | . . . . Kick . | . . . . Crush 4 | . 3 1 . Escape Stasis . | . . . . Rewire . | . . . . Trap . | . . . . Miscellaneous . | . . . . Route ------- -11/Scrapyard -10/Materials -10/Mines (discovered 2 exits: [*Mat] / *Sub) -10/Subcaves (discovered 1 exit: [*Mat]) History --------- Turn | Location | Event 28 | -11/Scrapyard | Discovered new exit (range 14) 149 | -11/Scrapyard | Entered Materials 280 | -10/Materials | Discovered new exit (range 9) 297 | -10/Materials | Entered Mines 302 | -10/Mines | Build established: Mutant 368 | -10/Mines | Learned location of Zion (-6) 514 | -10/Mines | Deemed a non-threat by the Exiles lab entrance 779 | -10/Mines | Learned Materials trap positions 865 | -10/Mines | Discovered new exit (range 15) 899 | -10/Mines | Discovered new exit (range 9) 915 | -10/Mines | Entered Subcaves 916 | -10/Subcaves | Approached by a straggling Scientist 935 | -10/Subcaves | Discovered new exit (range 7) 1428 | -10/Subcaves | Lost 4 parts (2n2w) 1566 | -10/Subcaves | Learned Materials stockpile data 1753 | -10/Subcaves | Visited 4L-MR0's lab 1776 | -10/Subcaves | Found Arachnoskeleton 2393 | -10/Subcaves | Visited Clippyterm 2401 | -10/Subcaves | Learned Research machine intel 2831 | -10/Subcaves | Shifting Twisted Machinery released Sub. Laser 2930 | -10/Subcaves | Core integrity fell below 50% 2976 | -10/Subcaves | Shifting Twisted Machinery released Mak. Light Armor Plating 3127 | -10/Subcaves | Shifting Twisted Machinery released Sub. Laser 3138 | -10/Subcaves | Shifting Twisted Machinery released Hvy. Battle Rifle 3603 | -10/Subcaves | Core integrity fell below 20% 3933 | -10/Subcaves | Destroyed by 8R-1H4(R) with Subdweller Laser Last Messages --------------- 03694_ Subatomizers dissect the Sub. Monowheel. 03695_ Acquired Grenade Launcher. 03699_ Dropped Scrap Shield Fragment. 03705_ Subatomizers dissect the Sub. Monowheel. 03705_ Acquired 43 matter. 03708_ Acquired 55 matter. 03727_ Subatomizers dissect the Sub. Monowheel. 03905_ Dropped Scrap Shield. 03906_ Dropped Seismic Detector. 03907_ Dropped Hcp. Storage Unit. 03907_ Acquired Scrap Shield. 03913_ Sub. Beam Cannon shoots sparks and powers down. 03916_ Dropped Broken Sub. Beam Cannon. 03917_ Acquired Sub. Machine Gun. 03919_ Critical hit (Destroy). 03929_ BE-G50(R) suffers critical hit (Destroy). 03930_ Aluminum Leg destroyed. 03932_ Critical hit (Destroy). Map ----- +----------------------------------------------------+ | ?????????????????????????????????????????????????? | | ?????????????????????????????????????????????????? | | ???????????????????? ??#????????????????????????? | | ???????????????????? ? ??????????????????????? | | ???????????????????? ?????????????????????? | | ?????????????####?## ?????????????????????? | | ????????###### ###" ????????????????????? | | ???????## " "" ????????????????????? | | ???????# "" ????????????????????? | | ??????##" ## #"# ????????????????????? | | ??????#"" ####### # ### ????????????????????? | | ??????##" #????# #??#???????? ??????????????? | | ???????## ##????# ##?????????? ##?????????????? | | ????????# #????# ##????????? ??????????????? | | ????????# ! #????# ##??????? ^??????????????? | | ????????# !##????# ###????? ???????????????? | | ????????#= &#????# #???? ^##??????????????? | | ????????##[##????# ##??## # #??????????????? | | ????????#[&#????## #####??? ???????????????? | | ????????##[###### ##?????? ^ ????????????????? | | ????????#%& ##?????? ^#?????????????????? | | ????????# ##????? #??????????????????? | | ????????## #?#### #??????????????????? | | ?????????## ####### R #??????????????????? | | ??????????## ##???##!/R % #??????????????????? | | ???????????## ######*!@# #??????????????????? | | ???????###### ## #!]!# ????????????????? | | ???????# # # =**!## ?????????????? | | ???????## ####=##### #???????????? | | ???????# ##??###???? #???????????? | | ???????# # ##?????????? #???????????? | | ???????## ### ##???????????# ##???????????? | | ???????# #?# ##?????###?#??? #????????????? | | ???????## #####?????# # # ## #????????????? | | ??????## ####### #????????????? | | ??????# ? ????????????? | | ??????## #??????? ????????????? | | ???????### ####??????? ## ??????????????? | | ?????????## ####???????##?????????????????? | | ??????????## #??????????????????????????? | | ???????????# #??????????????????????????? | | ?????????### ### #??????????????????????????? | | ???????### ##??#?????????????????##???????? | | ???????# #????##########???###"#???????? | | ???????# ### ##??#"# ## ##?## ##???????? | | ???????# #### ##??# ### ###???### | | ???????# #?## ##?# ## ##### | | ??????## ##??## ### ## ## | | ??????# ##????# ## | | ??????# ##??#### ## ### | +----------------------------------------------------+ Best States ------------- Heat Dissipation 25 Energy Generation 10 Energy Capacity 250 Matter Stores 300 Matter Capacity 300 Sight Range 16 Terrain Scan Density 10 Armor Coverage 800 Evasion (%) 40 Recoil Reduction 2 Item Schematics ----------------- Lrg. Storage Unit | -10/Materials | Hacked Robot Schematics ------------------ None Fabricated ------------ Nothing Repaired ---------- Nothing Alien Tech Used ----------------- None Achievements -------------- None Challenges ------------ None Game ------ Seed StealthTractorSpoofer Manual? 0 Play Time 00:13:55 Cumulative 300.0 hours Start 2025.09.24 @ 17:49:54 End 2025.09.24 @ 18:01:10 Sessions 1 Manual Loads 0 Difficulty Rogue Special Mode None Game No. 215 Rogue 215 Adventurer 0 Explorer 0 Win Type - Total 18 Types 9/0/5/1/1/0/0/1/0/1 Lore% 80 Gallery% 76 Achievement% 77 Wizard Run 0 Options --------- Layout 1 ASCII 0 Keyboard 0 Movement Mouse Keybinds 0 Fullscreen 2 Font 24/Smallcaps Map View 50x35 Zoom Use 0% Tactical HUD 1 Map Filters NONE Filters NONE Steam 1 RUN: c9e0976e-2394-44e8-91f5-9d08db6f7adf